[Event "Fagernes Chess GM-Swiss 2024"]
[Site "Fagernes"]
[Date "2024.03.27"]
[Round "4.4"]
[White "Johansson, Linus"]
[Black "Kulaots, Kaido"]
[Result "1/2-1/2"]
[ECO "D35"]
[WhiteElo "2427"]
[BlackElo "2534"]
[Annotator "TA"]
[PlyCount "74"]
[EventDate "2024.03.25"]
[EventType "swiss"]
[EventCountry "NOR"]
[SourceTitle "playchess.com"]
[Source "ChessBase"]
[SourceQuality "1"]
[TimeControl "40/6000+30:2400+30"]

{[%evp 11,74,35,29,8,18,18,22,6,9,15,19,18,21,16,33,12,10,8,12,0,0,0,0,-40,-12,-7,0,0,0,0,0,0,0,0,0,0,0,0,0,0,0,-16,-7,-28,-24,-24,-8,-22,-13,-41,-41,-41,-41,-41,-41,-47,-7,-64,0,-7,0,-58,0,-21,0]} 1. d4 {[%emt 0:00:03]} Nf6 {[%emt 0:00:19]} 2. c4 {[%emt 0:00:05]} e6 {[%emt 0:00:05]} 3. Nc3 {[%emt 0:00:03]} d5 {[%emt 0:00:06]} 4. cxd5 {[%emt 0:00:08]} exd5 {[%emt 0:00:05]} 5. Bg5 {[%emt 0:00:05]} Bb4 {[%emt 0:00:06]} 6. e3 {[%emt 0:02:36]} h6 {[%emt 0:01:00]} 7. Bxf6 {[%emt 0:03:06]} Qxf6 {[%emt 0:01:12]} 8. Qa4+ {[%emt 0:00:55]} Nc6 {[%emt 0:00:04]} 9. Bb5 {[%emt 0:00:12]} Bxc3+ {[%emt 0:18:35]} 10. bxc3 {[%emt 0:00:05]} Bd7 {[%emt 0:00:05]} 11. Nf3 {[%emt 0:09:51]} O-O {[%emt 0:01:39]} 12. O-O {[%emt 0:00:49]} a6 {[%emt 0:01:05]} 13. Bxc6 {[%emt 0:02:34]} Bxc6 {[%emt 0:00:51]} 14. Qb3 {[%emt 0:01:13]} Qd6 {[%emt 0:10:45]} 15. a4 {[%emt 0:03:40]} b5 {[%emt 0:22:47]} 16. a5 {[%emt 0:01:01]} Bd7 {[%emt 0:00:42]} 17. Qb4 {[%emt 0:04:50]} Bf5 {[%emt 0:05:32]} 18. Ne5 {[%emt 0:07:49]} c5 {[%emt 0:08:18]} 19. Qxc5 {[%emt 0:01:51]} Qxc5 {[%emt 0:00:12]} 20. dxc5 {[%emt 0:00:02]} Rac8 {[%emt 0:00:44] Dodges Nc6} 21. c6 {[%emt 0:03:18]} Rfe8 {[%emt 0:05:26]} (21... f6 22. Nf3 $15 (22. Nd7 Bxd7 23. cxd7 Rc5 $15)) 22. Nf3 {[%emt 0:08:25]} ({Don't play} 22. f4 Be4 (22... f6 23. Nf3 $11) 23. Ra3 f6 $17) 22... Rxc6 {[%emt 0:11:00]} 23. Nd4 {[%emt 0:00:31][%csl LRc6,LRf5]} Rf6 {[%emt 0:00:05]} 24. Rfd1 {[%emt 0:00:53]} Rc8 {[%emt 0:00:22]} 25. Ra3 {[%emt 0:00:56]} g5 {[%emt 0:03:07]} 26. Kf1 {[%emt 0:07:42]} Kf8 {[%emt 0:01:31]} 27. Ke2 {[%emt 0:01:27]} Ke7 {[%emt 0:01:06]} 28. f3 {[%emt 0:02:33]} Bg6 {[%emt 0:01:24]} 29. Rd2 {[%emt 0:08:54]} Rd6 {[%emt 0:00:29]} 30. Rb2 {[%emt 0:00:19]} Rd7 {[%emt 0:00:44]} 31. Kd2 {[%emt 0:00:27]} Rdc7 {[%emt 0:00:21]} 32. Rb4 {[%emt 0:03:24]} Kd6 {[%emt 0:01:27]} 33. Ne2 {[%emt 0:02:03]} Rc4 {[%emt 0:01:49] White must now prevent ...Rxb4.} 34. Nd4 {[%emt 0:07:50]} ({Better is} 34. Rab3 $11) 34... Kc5 {[%emt 0:05:16]} (34... Bh7 $15) 35. Nb3+ {[%emt 0:02:16]} Kd6 {[%emt 0:00:09]} (35... Kc6 $11) 36. Nd4 $15 {[%emt 0:04:34]} Kc5 {[%emt 0:00:53]} 37. Nb3+ {[%emt 0:01:03]} Kd6 {[%emt 0:00:06] Weighted Error Value: White=0.10 (very precise) /Black=0.11 (very precise) .  Mistake:       	White=1     	Black=2      Inaccurate:     	White=2     	Black=3      OK:         	White=10    	Black=8      Best:        	White=2     	Black=2} 1/2-1/2

[Event "Fagernes Chess GM-Swiss 2024"]
[Site "Fagernes"]
[Date "2024.03.27"]
[Round "4.5"]
[White "Koelle, Tobias"]
[Black "Ingebretsen, Jens E"]
[Result "0-1"]
[ECO "D41"]
[WhiteElo "2460"]
[BlackElo "2402"]
[Annotator "TA"]
[PlyCount "120"]
[EventDate "2024.03.25"]
[EventType "swiss"]
[EventCountry "NOR"]
[SourceTitle "playchess.com"]
[Source "ChessBase"]
[SourceQuality "1"]
[TimeControl "40/6000+30:2400+30"]

{[%evp 26,120,14,8,12,15,13,0,12,14,14,0,0,0,12,14,13,0,0,0,6,0,16,1,9,0,0,-2,30,8,9,0,0,0,0,0,0,0,0,0,0,-19,0,-10,-2,0,0,-5,-5,-79,-70,-139,-139,-141,-140,-146,-147,-148,-138,-129,-137,-123,-102,-102,-102,-122,-102,-102,-102,-102,-102,-102,-102,-95,-73,-499,-430,-735,-670,-1850,-1879,-1106,-632,-5338,-2029,-29978,-29980,-29982,-29983,-29987,-29982,-29982,0,-29983,-29984,-29984,-29985]} 1. d4 {[%emt 0:00:22]} Nf6 {[%emt 0:04:56]} 2. c4 {[%emt 0:00:07]} e6 {[%emt 0:00:04]} 3. Nf3 {[%emt 0:00:05]} d5 {[%emt 0:00:04]} 4. Nc3 {[%emt 0:00:04]} c5 {[%emt 0:00:05]} 5. cxd5 {[%emt 0:00:06]} Nxd5 {[%emt 0:00:03]} 6. e4 {[%emt 0:00:07]} Nxc3 {[%emt 0:00:03]} 7. bxc3 {[%emt 0:00:05]} cxd4 {[%emt 0:00:04]} 8. cxd4 {[%emt 0:00:02]} Bb4+ {[%emt 0:00:06]} 9. Bd2 {[%emt 0:00:03]} Bxd2+ {[%emt 0:00:07]} 10. Qxd2 {[%emt 0:00:02]} O-O {[%emt 0:00:08]} 11. Bc4 {[%emt 0:00:26]} Nd7 {[%emt 0:00:05]} 12. O-O {[%emt 0:00:06] D41: Queen's Gambit Declined: Semi-Tarrasch with 5 cxd5.} b6 {[%emt 0:00:09]} 13. d5 {[%emt 0:00:02]} Nc5 {[%emt 0:09:06]} 14. Rfe1 {[%emt 0:17:48]} Bb7 {[%emt 0:06:51]} 15. Rad1 {[%emt 0:10:23]} exd5 {[%emt 0:27:54] has lost popularity (15...Qf6).} 16. Bxd5 {[%emt 0:01:26]} Qe7 {[%emt 0:02:21]} 17. Nd4 {[%emt 0:18:13]} Rad8 {[%emt 0:03:42]} 18. Nf5 {[%emt 0:05:56]} Qf6 {[%emt 0:01:52]} 19. Qc2 $146 {[%emt 0:02:11]} ({Predecessor:} 19. Qf4 g6 20. Bxf7+ Kh8 21. Qh6 Qxf7 22. Nh4 Rxd1 23. Nxg6+ Kg8 {0-1 Wongsawan,T (1837)-Kulpruethanon,T (2282) Bangkok Olympiad Qual 2022 (4)}) 19... Bc8 {[%emt 0:14:39]} 20. Nd4 {[%emt 0:08:43]} Bd7 {[%emt 0:07:57]} 21. Re3 {[%emt 0:08:32]} Ba4 {[%emt 0:03:30]} 22. Nb3 {[%emt 0:00:30]} Rc8 {[%emt 0:11:35]} 23. Qe2 {[%emt 0:03:43]} Qe5 {[%emt 0:02:56]} 24. h3 {[%emt 0:16:23]} Rc7 {[%emt 0:03:55]} 25. Qg4 {[%emt 0:06:08]} Bd7 {[%emt 0:03:25]} 26. Qh4 {[%emt 0:00:26]} Nxb3 {[%emt 0:01:19]} 27. axb3 {[%emt 0:01:31]} (27. f4 $5 Qe8 28. axb3 $11) 27... Be6 {[%emt 0:00:46]} 28. Rg3 {[%emt 0:03:26]} Rd7 {[%emt 0:04:00]} 29. f4 {[%emt 0:04:34]} Qb2 {[%emt 0:01:53]} 30. f5 {[%emt 0:02:50]} Bxd5 $1 {[%emt 0:01:22]} 31. f6 {[%emt 0:00:13]} g6 $1 {[%emt 0:00:00]} 32. exd5 {[%emt 0:00:40]} Rd6 {[%emt 0:00:08]} 33. Rf3 {[%emt 0:00:19]} Qe5 {[%emt 0:00:54]} (33... Re8 {simplifies} 34. Qf4 Qe5 35. Qxe5 Rxe5 36. Rc3 Re8) 34. Rdf1 $1 {[%emt 0:01:00]} h5 {[%emt 0:00:34]} (34... Rxd5 $2 35. Qh6 $18) 35. Rf5 $1 {[%emt 0:00:45]} Qe3+ {[%emt 0:00:00]} (35... gxf5 36. Qg5+ Kh8 37. Qg7#) 36. Kh2 $1 {[%emt 0:00:22]} Rfd8 {[%emt 0:01:10]} (36... gxf5 $2 37. Rf3 Qh6 38. Qg3+ (38. Rxf5 $2 Rfd8 $19) 38... Kh7 39. Qxd6 $16) 37. R1f3 {[%emt 0:00:33]} (37. Re1 $1 $11 {remains equal.} Qd3 (37... Qxb3 38. Rxh5) 38. Ree5 Rxd5 (38... gxf5 39. Qg5+ Kh8 40. Qg7#) 39. Rxh5 gxh5 40. Qg5+ Qg6 41. Rxd5 Rxd5 42. Qxd5) 37... Qh6 $17 {[%emt 0:00:04]} 38. Qg3 {[%emt 0:00:43]} (38. Re5 $15) 38... Rxd5 $17 {[%emt 0:00:54]} 39. Rxd5 {[%emt 0:00:07]} Rxd5 {[%emt 0:00:01]} 40. Re3 {[%emt 0:00:26]} Rf5 {[%emt 0:01:12]} 41. Re8+ {[%emt 0:07:45]} Kh7 {[%emt 0:00:08]} 42. Qb8 {[%emt 0:01:08]} Qf4+ {[%emt 0:00:35]} ({Stronger than} 42... Rxf6 43. Rh8+ Kg7 44. Qg8#) 43. Qxf4 {[%emt 0:00:02]} Rxf4 {[%emt 0:00:08]} 44. Re7 {[%emt 0:00:04]} Rxf6 {[%emt 0:03:47]} 45. Rxa7 {[%emt 0:00:29]} h4 {[%emt 0:03:01]} 46. Ra4 {[%emt 0:02:29]} g5 {[%emt 0:00:06]} 47. Rb4 {[%emt 0:00:32]} Kg6 {[%emt 0:00:19]} 48. Rb5 {[%emt 0:06:44]} Rc6 {[%emt 0:01:10]} 49. Kg1 {[%emt 0:01:23]} f5 {[%emt 0:02:08]} 50. Kf2 $2 {[%emt 0:00:39][%mdl 8192]} (50. Rb4 $17) 50... g4 $1 $19 {[%emt 0:05:20]} 51. hxg4 {[%emt 0:03:38]} (51. Ke3 $142 Re6+ 52. Kd3) 51... fxg4 $19 {[%emt 0:00:48]} 52. Rb4 {[%emt 0:01:54]} Kf5 {[%emt 0:01:12]} 53. Rb5+ {[%emt 0:00:36]} Rc5 {[%emt 0:01:02]} 54. Rxb6 {[%emt 0:00:10]} Rc2+ $1 {[%emt 0:01:04]} 55. Kf1 {[%emt 0:01:10]} Kf4 {[%emt 0:01:05]} 56. Rf6+ {[%emt 0:09:14]} Kg3 {[%emt 0:00:22]} 57. Kg1 {[%emt 0:00:02]} Rc1+ {[%emt 0:01:31]} 58. Rf1 {[%emt 0:00:07] [#]} Rxf1+ $1 {[%emt 0:00:41]} 59. Kxf1 {[%emt 0:00:01] [#]} Kh2 $1 {[%emt 0:00:08]} 60. b4 {[%emt 0:00:04]} g3 {[%emt 0:00:09]} 0-1

[Event "Fagernes Chess GM-Swiss 2024"]
[Site "Fagernes"]
[Date "2024.03.27"]
[Round "4.6"]
[White "Sidhant, Mohapatra"]
[Black "Chasin, Nico"]
[Result "1-0"]
[ECO "B22"]
[WhiteElo "2379"]
[BlackElo "2447"]
[Annotator "TA"]
[PlyCount "117"]
[EventDate "2024.03.25"]
[EventType "swiss"]
[EventCountry "NOR"]
[SourceTitle "playchess.com"]
[Source "ChessBase"]
[SourceQuality "1"]
[TimeControl "40/6000+30:2400+30"]

{[%evp 34,117,0,-32,-18,-27,-17,-29,-18,-21,-27,-51,-35,-57,-41,-75,-25,-30,0,0,0,-9,88,14,18,13,10,18,76,72,112,109,87,79,70,48,44,43,44,0,7,0,49,9,6,0,0,0,101,65,210,195,552,95,207,240,239,236,192,193,200,204,203,40,125,0,125,120,129,133,126,116,126,122,322,311,714,716,708,713,718,721,721,720,714,691]} 1. e4 {[%emt 0:01:57]} c5 {[%emt 0:05:34]} 2. c3 {[%emt 0:00:15]} Nf6 {[%emt 0:00:21]} 3. e5 {[%emt 0:00:09]} Nd5 {[%emt 0:00:05]} 4. Nf3 {[%emt 0:00:06]} Nc6 {[%emt 0:00:30]} 5. Bc4 {[%emt 0:02:57]} e6 {[%emt 0:09:01]} 6. O-O {[%emt 0:00:47]} Be7 {[%emt 0:00:16]} 7. d4 {[%emt 0:00:42]} cxd4 {[%emt 0:00:10]} 8. cxd4 {[%emt 0:00:10]} d6 {[%emt 0:00:04]} 9. Re1 {[%emt 0:04:32]} O-O {[%emt 0:00:18]} 10. Bxd5 {[%emt 0:00:48]} exd5 {[%emt 0:00:18]} 11. Nc3 {[%emt 0:00:04]} dxe5 {[%emt 0:02:06]} 12. Nxe5 {[%emt 0:00:09]} Nxe5 {[%emt 0:01:32]} 13. Rxe5 {[%emt 0:00:06] B22: Sicilian: 2 c3.} Be6 {[%emt 0:00:09]} 14. Re1 {[%emt 0:00:22]} Qb6 $146 {[%emt 0:01:13]} ({Predecessor:} 14... Bf6 15. Bf4 Qb6 16. Be5 Bxe5 17. Rxe5 Qxb2 18. Nxd5 Bxd5 19. Rxd5 Rac8 20. Rc5 Rfd8 21. Rxc8 Rxc8 {½-½ Zamhoefer,L (1488)-Klonov,J (1158) GER-chT U14 Verden an der Aller 2017 (7.4)}) 15. Na4 {[%emt 0:02:20]} Qb4 {[%emt 0:03:32]} 16. a3 {[%emt 0:02:19]} Qb5 {[%emt 0:00:22]} 17. Nc3 {[%emt 0:05:52]} Qb6 {[%emt 0:00:42]} 18. Na4 {[%emt 0:00:49]} Qc6 {[%emt 0:02:44]} 19. Be3 {[%emt 0:03:43]} b6 {[%emt 0:00:10]} 20. Nc3 {[%emt 0:02:11]} Rac8 {[%emt 0:02:03]} 21. Qf3 {[%emt 0:01:04]} Qd7 {[%emt 0:00:12]} 22. Qg3 {[%emt 0:00:57]} Rc4 {[%emt 0:00:29]} 23. Ne2 {[%emt 0:11:24]} Bf5 {[%emt 0:04:00]} 24. h4 {[%emt 0:03:44]} a5 {[%emt 0:11:15]} (24... Rc2 $17) 25. h5 {[%emt 0:00:40]} Rc2 {[%emt 0:03:21]} 26. h6 {[%emt 0:08:47]} g6 {[%emt 0:01:49]} 27. Nc3 {[%emt 0:02:19]} Rd8 {[%emt 0:09:32]} (27... f6 $11) 28. Rac1 {[%emt 0:10:28]} (28. Bg5 $1 $16 f6 29. Qe3) 28... Rxc1 $11 {[%emt 0:00:43]} 29. Bxc1 {[%emt 0:00:03]} Kf8 $1 {[%emt 0:01:05]} 30. Bf4 {[%emt 0:03:59]} (30. Qe5 $5 f6 $8 31. Qe2 $11) 30... Qc6 {[%emt 0:07:47]} (30... Re8 $11 {keeps the balance.}) 31. Qe3 $1 $16 {[%emt 0:05:06]} Rd7 {[%emt 0:04:10]} 32. f3 $1 {[%emt 0:00:30]} Qe6 {[%emt 0:03:31]} 33. Qd2 {[%emt 0:01:18]} Qf6 {[%emt 0:00:02]} 34. Be5 {[%emt 0:08:03]} Qh4 {[%emt 0:01:53]} 35. Bg7+ {[%emt 0:00:17]} Kg8 {[%emt 0:01:02]} 36. Nb5 {[%emt 0:09:50]} Bd3 {[%emt 0:01:36]} 37. Nc3 {[%emt 0:01:22]} Bf5 $1 {[%emt 0:00:34]} 38. Re2 {[%emt 0:04:37]} Be6 {[%emt 0:00:22]} 39. Nb5 {[%emt 0:06:03]} (39. Qe1 {simplifies} Qxe1+ 40. Rxe1 Rd6 41. Kf2) 39... Bg5 {[%emt 0:01:13]} 40. Qe1 {[%emt 0:00:08]} Qf4 {[%emt 0:01:26]} (40... Qxe1+ $1 $11 41. Rxe1 Re7) 41. Be5 {[%emt 0:45:11]} Qf5 {[%emt 0:40:22]} (41... Qc1 $14) 42. Nd6 {[%emt 0:00:39]} Qd3 $2 {[%emt 0:02:59] [#]} (42... Rxd6 {is tougher.} 43. Bxd6 Bxh6) 43. Ne8 $2 {[%emt 0:00:24]} (43. f4 $1 $18 {[%cal Rf4g5]} Bxh6 44. Re3 (44. Ne8 Kf8 $18)) 43... Kf8 {[%emt 0:02:15]} (43... Re7 $16 44. Nf6+ Bxf6 45. Bxf6 Re8) 44. Nf6 $18 {[%emt 0:00:59]} Bxf6 {[%emt 0:02:15]} 45. Bxf6 {[%emt 0:00:06]} Qf5 {[%emt 0:00:25] [#]} 46. Bg7+ $1 {[%emt 0:02:36]} Ke7 {[%emt 0:00:46]} 47. Qc3 {[%emt 0:01:18]} Qf4 {[%emt 0:00:28]} 48. Rc2 $2 {[%emt 0:00:00]} (48. Be5 $18 Qxh6 49. Bc7) 48... Rd8 {[%emt 0:00:00]} (48... f6 $14) 49. Re2 {[%emt 0:00:00]} (49. Be5 $16 Qxh6 50. Qc7+ Rd7 51. Bd6+ (51. Qxb6 Qe3+ 52. Kh2 Qh6+ 53. Kg1 Qe3+ 54. Rf2 f6 $14) 51... Kf6 52. Qxb6 (52. Be5+ Ke7 $16) 52... Qe3+ 53. Kf1 Qd3+ 54. Re2 Rxd6 55. Qxd6 Qd1+ 56. Kf2 Qxd4+ 57. Kg3) 49... Qb8 {[%emt 0:00:00]} (49... Rd7 $1 $11) 50. Be5 $16 {[%emt 0:00:00]} Qb7 {[%emt 0:00:00]} 51. Qe3 {[%emt 0:00:00]} Rc8 {[%emt 0:00:00]} 52. Qg5+ {[%emt 0:00:00]} Kd7 {[%emt 0:00:00]} 53. Bf4 {[%emt 0:00:00]} Rc4 $2 {[%emt 0:00:00]} (53... b5 $16 {was called for.} 54. Qe5 Qb6) 54. Qf6 $18 {[%emt 0:00:00]} Kc6 $2 {[%emt 0:00:00]} (54... g5) 55. b3 $18 {[%emt 0:00:00]} Rc3 {[%emt 0:00:00]} 56. Rxe6+ {[%emt 0:00:00]} fxe6 {[%emt 0:00:00]} 57. Qxe6+ {[%emt 0:00:00]} Kb5 {[%emt 0:00:00]} 58. Qe2+ {[%emt 0:00:00]} Kc6 {[%emt 0:00:00]} 59. Qd2 {[%emt 0:00:00]} 1-0

[Event "Fagernes Chess GM-Swiss 2024"]
[Site "Fagernes"]
[Date "2024.03.27"]
[Round "4.7"]
[White "Willow, Jonah B"]
[Black "Panda Sambit"]
[Result "1/2-1/2"]
[ECO "B12"]
[WhiteElo "2446"]
[BlackElo "2377"]
[Annotator "RC"]
[PlyCount "182"]
[EventDate "2024.03.25"]
[EventType "swiss"]
[EventCountry "NOR"]
[SourceTitle "playchess.com"]
[Source "ChessBase"]
[SourceQuality "1"]
[TimeControl "40/6000+30:2400+30"]

1. e4 {[%emt 0:03:20]} c6 {[%emt 0:04:55]} 2. d4 {[%emt 0:00:17]} d5 {[%emt 0:00:34]} 3. e5 {[%emt 0:00:25]} Bf5 {[%emt 0:01:48]} 4. Nf3 {[%emt 0:00:22]} e6 {[%emt 0:00:08]} 5. Be2 {[%emt 0:00:04]} Nd7 {[%emt 0:05:06]} 6. O-O {[%emt 0:00:53]} a5 {[%emt 0:00:02]} 7. a4 {[%emt 0:03:09]} f6 {[%emt 0:01:49]} 8. Nbd2 {[%emt 0:00:46]} Nh6 {[%emt 0:00:07]} 9. Nb3 {[%emt 0:00:20]} Nf7 {[%emt 0:00:41]} 10. Re1 {[%emt 0:00:03]} g5 {[%emt 0:01:02]} 11. Bd2 {[%emt 0:11:12]} Bg7 {[%emt 0:09:55]} 12. Bd3 {[%emt 0:09:57]} Bxd3 {[%emt 0:05:24]} 13. cxd3 {[%emt 0:01:34]} O-O {[%emt 0:02:09]} 14. exf6 {[%emt 0:02:18]} Qxf6 {[%emt 0:00:31]} 15. h3 {[%emt 0:02:47]} e5 {[%emt 0:31:53]} 16. Bc3 {[%emt 0:13:59]} Qf4 {[%emt 0:02:38]} 17. Bxa5 {[%emt 0:14:10]} e4 {[%emt 0:25:13]} 18. Bd2 {[%emt 0:02:37]} Qf5 {[%emt 0:00:14]} 19. dxe4 {[%emt 0:01:03]} dxe4 {[%emt 0:00:01]} 20. Nh2 {[%emt 0:15:32]} Nd6 {[%emt 0:00:43]} 21. Be3 {[%emt 0:00:54]} Nf6 {[%emt 0:01:09]} 22. Rf1 {[%emt 0:14:56]} h5 {[%emt 0:05:42]} 23. Rc1 {[%emt 0:01:09]} Qg6 {[%emt 0:02:00]} 24. Nc5 {[%emt 0:02:37]} Nd5 {[%emt 0:01:15]} 25. Qb3 {[%emt 0:01:03]} Rf7 {[%emt 0:01:37]} 26. Rfe1 {[%emt 0:02:00]} Kh7 {[%emt 0:05:05]} 27. Qc2 {[%emt 0:00:51]} Re8 {[%emt 0:00:30]} 28. Nf1 {[%emt 0:00:55]} Bf6 {[%emt 0:01:37]} 29. a5 {[%emt 0:00:55]} Rg7 {[%emt 0:00:35]} 30. Qd1 {[%emt 0:00:41]} Reg8 {[%emt 0:00:34]} 31. a6 {[%emt 0:00:39]} bxa6 {[%emt 0:00:30]} 32. Nxa6 {[%emt 0:00:43]} g4 {[%emt 0:00:05]} 33. hxg4 {[%emt 0:00:29]} Qxg4 {[%emt 0:00:27]} 34. Qxg4 {[%emt 0:00:40]} Rxg4 {[%emt 0:00:01]} 35. g3 {[%emt 0:00:07]} h4 {[%emt 0:00:54]} 36. Rxc6 {[%emt 0:01:26]} hxg3 {[%emt 0:00:27]} 37. fxg3 {[%emt 0:01:45]} Nf5 {[%emt 0:00:02]} 38. Kf2 {[%emt 0:01:20]} Nfxe3 {[%emt 0:01:32]} 39. Rxf6 {[%emt 0:01:15]} Nxf6 {[%emt 0:00:26]} 40. Nxe3 {[%emt 0:00:24]} R4g6 {[%emt 0:00:01]} 41. Nc5 {[%emt 0:04:42]} Rb8 {[%emt 0:01:00]} 42. Nc4 {[%emt 0:10:46]} Rf8 {[%emt 0:02:35]} 43. Kg2 {[%emt 0:01:57]} Rfg8 {[%emt 0:05:28]} 44. Rh1+ {[%emt 0:03:01]} Rh6 {[%emt 0:00:16]} 45. Ra1 {[%emt 0:01:59]} Rhg6 {[%emt 0:04:17]} 46. Rh1+ {[%emt 0:00:06]} Rh6 {[%emt 0:00:04]} 47. Ra1 {[%emt 0:00:04]} Rh5 {[%emt 0:11:58]} 48. Ne5 {[%emt 0:08:14]} e3 {[%emt 0:04:13]} 49. Ne6 {[%emt 0:02:59]} Rf5 {[%emt 0:04:26]} 50. Rh1+ {[%emt 0:07:25]} Rh5 {[%emt 0:05:19]} 51. Re1 {[%emt 0:01:24]} Nd5 {[%emt 0:01:28]} 52. Kf3 {[%emt 0:01:02]} Rh6 {[%emt 0:01:02]} 53. Nf4 {[%emt 0:01:28]} Nxf4 {[%emt 0:00:05]} 54. gxf4 {[%emt 0:00:27]} Rb8 {[%emt 0:00:39]} 55. Ke4 {[%emt 0:01:07]} Rxb2 {[%emt 0:01:16]} 56. Rxe3 {[%emt 0:00:03]} Kg7 {[%emt 0:01:06]} 57. Rg3+ {[%emt 0:00:04]} Kf8 {[%emt 0:00:10]} 58. Ra3 {[%emt 0:00:11]} Rb7 {[%emt 0:01:32]} 59. Kf5 {[%emt 0:01:10]} Rd6 {[%emt 0:00:24]} 60. Ra4 {[%emt 0:00:33]} Rb5 {[%emt 0:00:49]} 61. Ke4 {[%emt 0:00:20]} Rb1 {[%emt 0:00:55]} 62. Nd3 {[%emt 0:00:44]} Rd1 {[%emt 0:00:31]} 63. f5 {[%emt 0:00:41]} Kg7 {[%emt 0:01:01]} 64. Ke5 {[%emt 0:00:52]} Rf6 {[%emt 0:01:36]} 65. Ra7+ {[%emt 0:00:43]} Rf7 {[%emt 0:00:04]} 66. f6+ {[%emt 0:00:17]} Kg8 {[%emt 0:00:03]} 67. Ra3 {[%emt 0:00:21]} Rf1 {[%emt 0:01:47]} 68. Nf4 {[%emt 0:00:57]} Rd7 {[%emt 0:00:18]} 69. Rg3+ {[%emt 0:00:53]} Kf7 {[%emt 0:00:26]} 70. d5 {[%emt 0:00:46]} Rxf4 {[%emt 0:00:32]} 71. Rg7+ {[%emt 0:00:03]} Ke8 {[%emt 0:00:03]} 72. Rg8+ {[%emt 0:00:21]} Kf7 {[%emt 0:00:07]} 73. Rg7+ {[%emt 0:00:02]} Ke8 {[%emt 0:00:02]} 74. Rxd7 {[%emt 0:00:26]} Rxf6 {[%emt 0:00:04]} 75. Rd6 {[%emt 0:00:11]} Rf7 {[%emt 0:02:21]} 76. Re6+ {[%emt 0:01:33]} Kd7 {[%emt 0:00:12]} 77. Rd6+ {[%emt 0:00:12]} Ke8 {[%emt 0:00:15]} 78. Ra6 {[%emt 0:00:34]} Re7+ {[%emt 0:00:59]} 79. Kd6 {[%emt 0:00:37]} Rd7+ {[%emt 0:00:03]} 80. Ke6 {[%emt 0:00:48]} Re7+ {[%emt 0:00:04]} 81. Kd6 {[%emt 0:00:02]} Rd7+ {[%emt 0:00:04]} 82. Kc6 {[%emt 0:00:21]} Ke7 {[%emt 0:00:19]} 83. Kc5 {[%emt 0:01:03]} Rc7+ {[%emt 0:00:58]} 84. Rc6 {[%emt 0:00:18]} Rb7 {[%emt 0:01:08]} 85. Re6+ {[%emt 0:01:01]} Kd7 {[%emt 0:00:09]} 86. Rd6+ {[%emt 0:00:17]} Ke7 {[%emt 0:00:07]} 87. Rh6 {[%emt 0:00:46]} Rc7+ {[%emt 0:00:17]} 88. Kb6 {[%emt 0:00:23]} Rc1 {[%emt 0:00:05]} 89. Rc6 {[%emt 0:00:21]} Rd1 {[%emt 0:00:06]} 90. d6+ {[%emt 0:00:26]} Rxd6 {[%emt 0:00:06]} 91. Rxd6 {[%emt 0:00:03]} Kxd6 {[%emt 0:00:04]} 1/2-1/2